bitfinex/quotes_SOLUSD_20250222
["timestamp","ask_amount","ask_price","bid_price","bid_amount"]
[1740234260874,11.50920075,173.36,173.33,0.063]
[1740234261251,11.50920075,173.37,173.33,0.063]
[1740234262046,18.64964886,173.37,173.33,0.063]
[1740234262980,92.70920075,173.39,173.33,0.063]
[1740234263178,0.063,173.4,173.34,11.50920075]
[1740234263557,0.063,173.39,173.35,11.50920075]
[1740234264191,0.063,173.39,173.34,11.50920075]
[1740234264349,11.50920075,173.38,173.33,0.063]
[1740234264554,11.50920075,173.35,173.33,0.063]
[1740234266191,11.57220075,173.39,173.33,0.063]
[1740234266482,0.063,173.39,173.33,11.57220075]
[1740234266681,0.063,173.39,173.34,17.27790075]
[1740234266894,0.063,173.39,173.34,5.7687]
[1740234267864,11.57220075,173.39,173.33,5.8322]
[1740234268300,11.50920075,173.38,173.33,5.8322]
[1740234268459,11.50920075,173.38,173.33,0.063]
[1740234270275,0.063,173.39,173.34,11.50920075]
[1740234270778,0.063,173.39,173.33,11.57220075]
[1740234271278,0.063,173.39,173.34,5.769]
[1740234272166,0.063,173.39,173.34,93.71285675]
[1740234272482,0.063,173.39,173.34,76.434656]
[1740234272872,0.063,173.39,173.34,87.94385675]
[1740234273078,0.063,173.39,173.36,6.0735]
[1740234273494,0.063,173.39,173.36,11.8415]
[1740234274483,0.063,173.39,173.36,23.35070075]
[1740234274871,0.063,173.39,173.36,11.8415]
[1740234275271,0.063,173.39,173.36,99.78535675]
[1740234275991,0.063,173.39,173.36,88.276356]
[1740234276195,0.063,173.39,173.38,11.50920075]
[1740234277807,0.063,173.39,173.38,93.71145675]
[1740234278871,0.063,173.39,173.35,5.7686]
[1740234279286,0.063,173.39,173.35,17.27780075]
[1740234279610,0.063,173.39,173.36,11.50920075]
[1740234280412,0.063,173.39,173.35,17.27780075]
[1740234282386,0.063,173.39,173.37,5.768]
[1740234284513,0.063,173.39,173.34,0.03]
[1740234284706,30.15884961,173.38,173.34,0.03]
[1740234288120,35.92664961,173.38,173.34,0.03]
[1740234289390,24.41744886,173.38,173.34,0.03]
[1740234290213,11.50920075,173.35,173.34,0.03]
[1740234290526,30.15884961,173.35,173.34,0.03]
[1740234290827,18.64964886,173.35,173.34,0.03]
[1740234291203,13.16150075,173.37,173.34,0.03]
[1740234291914,18.64964886,173.36,173.34,0.03]
[1740234294621,115.65884961,173.35,173.34,0.03]
[1740234298524,40.22744961,173.35,173.34,0.03]
[1740234298820,34.45884961,173.35,173.34,0.03]
[1740234299514,40.22744961,173.35,173.34,0.03]
[1740234301697,121.42744961,173.35,173.34,0.03]
[1740234303820,22.94964886,173.35,173.34,0.03]
[1740234304199,81.2,173.37,173.34,0.03]
[1740234304401,0.063,173.38,173.34,0.03]
[1740234304613,18.71264886,173.38,173.34,0.03]
[1740234304817,0.063,173.38,173.36,11.50920075]
[1740234305019,0.063,173.38,173.37,11.50920075]
[1740234306222,0.063,173.38,173.37,101.42685675]
[1740234306427,0.063,173.38,173.37,109.82566979]
[1740234309822,0.063,173.4,173.37,109.82566979]
[1740234310024,0.063,173.46,173.39,11.50920075]
[1740234310227,0.063,173.46,173.45,11.50920075]
[1740234311135,0.063,173.46,173.45,20.19690268]
[1740234311514,0.063,173.46,173.45,96.63155868]
[1740234311909,0.063,173.46,173.45,102.39685868]
[1740234313736,0.03,173.55,173.45,116.81015868]
[1740234314039,0.03,173.55,173.52,11.50920075]
[1740234314228,0.03,173.55,173.53,11.50920075]
[1740234314441,0.03,173.55,173.54,11.50920075]
[1740234315016,0.03,173.55,173.54,87.94385675]
[1740234316043,0.03,173.55,173.54,102.39385868]
[1740234316743,0.03,173.55,173.54,108.82771204]
[1740234320247,0.03,173.55,173.54,103.06541204]
[1740234320434,0.03,173.55,173.54,108.82771204]
[1740234325248,0.03,173.55,173.54,90.88465793]
[1740234325450,0.03,173.55,173.54,103.06541204]
[1740234325648,0.03,173.55,173.54,76.434656]
[1740234326452,0.03,173.55,173.54,94.37771011]
[1740234329867,0.03,173.55,173.54,76.434656]
[1740234330454,0.03,173.55,173.54,94.37771011]
[1740234330651,0.03,173.55,173.54,100.14001011]
[1740234331655,0.03,173.55,173.54,108.95905537]
[1740234333249,0.063,173.56,173.54,108.95905537]
[1740234333456,0.063,173.56,173.55,26.76209937]
[1740234335876,0.063,173.56,173.55,32.52409937]
[1740234336936,0.063,173.56,173.55,108.95875537]
[1740234337960,0.063,173.56,173.55,111.84915051]
[1740234338661,0.063,173.56,173.55,105.38806924]
[1740234339749,0.063,173.56,173.55,93.9060964]
[1740234339949,0.063,173.56,173.55,105.38806924]
[1740234346149,0.063,173.57,173.56,1.0]
[1740234346348,0.063,173.6,173.57,31.48197284]
[1740234346666,0.063,173.6,173.59,31.48197284]
[1740234346851,0.063,173.6,173.59,40.3010181]
[1740234347469,0.063,173.6,173.59,46.0617181]
[1740234349068,0.063,173.6,173.59,122.4963741]
[1740234349450,0.063,173.64,173.6,8.81904526]
[1740234349651,0.063,173.64,173.62,11.48197284]
[1740234350963,0.063,173.64,173.62,26.0607181]
[1740234354274,0.063,173.64,173.6,76.434656]
[1740234354456,0.063,173.64,173.6,87.91662884]
[1740234354861,0.063,173.64,173.61,11.48197284]
[1740234357476,0.063,173.64,173.6,76.434656]
[1740234357876,0.063,173.64,173.6,87.91662884]
[1740234358985,0.063,173.64,173.61,11.48197284]
[1740234359383,0.063,173.64,173.6,76.434656]
[1740234359574,0.063,173.64,173.61,11.48197284]
[1740234360273,0.063,173.64,173.6,82.194956]
[1740234360486,0.063,173.64,173.61,11.48197284]
[1740234361173,0.063,173.64,173.62,11.48197284]
[1740234365264,0.063,173.64,173.61,17.24187284]
[1740234365761,0.063,173.64,173.61,11.48197284]
[1740234366174,0.063,173.64,173.61,17.24187284]
[1740234366592,0.063,173.64,173.61,11.48197284]
[1740234367087,0.063,173.64,173.6,93.67692884]
[1740234367887,0.063,173.64,173.58,11.54497284]
[1740234368084,1.6037,173.63,173.58,0.063]
[1740234369173,20.0,173.62,173.58,0.063]
[1740234369390,11.48197284,173.62,173.58,0.063]
[1740234370506,18.00357284,173.61,173.58,0.063]
[1740234370697,11.48197284,173.6,173.58,0.063]
[1740234371573,20.0,173.59,173.58,0.063]
[1740234372399,82.8037,173.63,173.58,0.063]
[1740234372601,1.6037,173.63,173.58,11.54497284]
[1740234372801,20.0,173.61,173.58,11.54497284]
[1740234373698,20.0,173.61,173.58,17.30567284]
[1740234373884,1.6037,173.63,173.58,17.30567284]
[1740234374089,1.6037,173.63,173.59,11.48197284]
[1740234374284,1.6037,173.63,173.6,11.48197284]
[1740234374976,1.6037,173.63,173.59,11.48197284]
[1740234375683,1.6037,173.63,173.59,17.24257284]
[1740234376471,1.6037,173.63,173.59,11.48197284]
[1740234377504,1.6037,173.63,173.58,76.497656]
[1740234377505,7.3631,173.63,173.58,76.497656]
[1740234377906,11.48197284,173.62,173.58,76.497656]
[1740234378605,11.48197284,173.62,173.58,0.063]
[1740234378812,11.48197284,173.61,173.58,0.063]
[1740234379112,11.48197284,173.6,173.58,0.063]
[1740234379924,17.24247284,173.6,173.58,0.063]
[1740234381827,17.24197284,173.61,173.58,0.063]
[1740234381992,11.48197284,173.61,173.58,0.063]
[1740234382193,5.7597,173.62,173.58,0.063]
[1740234382396,20.0,173.59,173.58,0.063]
[1740234383130,82.8037,173.63,173.58,11.54497284]
[1740234383309,1.6037,173.63,173.58,11.54497284]
[1740234383510,1.6037,173.63,173.58,0.063]
[1740234383825,7.3631,173.63,173.58,0.063]
[1740234384000,18.84507284,173.63,173.58,0.063]
[1740234384519,38.84507284,173.63,173.58,0.063]
[1740234384736,11.48197284,173.62,173.58,0.063]
[1740234384931,38.84507284,173.63,173.58,0.063]
[1740234385747,11.48197284,173.62,173.58,0.063]
[1740234386542,38.84507284,173.63,173.58,0.063]
[1740234387430,21.6037,173.63,173.58,11.54497284]
[1740234387636,21.6037,173.63,173.59,11.48197284]
[1740234387817,20.063,173.63,173.59,11.48197284]
[1740234389025,20.063,173.63,173.6,5.7603]
[1740234389339,20.063,173.63,173.58,0.063]
[1740234389539,11.48197284,173.59,173.58,0.063]
[1740234389721,34.3916217,173.59,173.58,0.063]
[1740234390539,4.26,173.59,173.58,0.063]
[1740234390727,24.26,173.59,173.58,0.063]
[1740234391331,66.62382076,173.59,173.58,0.063]
[1740234391638,60.86312076,173.59,173.58,0.063]
[1740234392827,66.62382076,173.59,173.58,0.063]
[1740234393028,60.86312076,173.59,173.58,0.063]
[1740234393429,66.62382076,173.59,173.58,0.063]
[1740234395848,60.86312076,173.59,173.58,0.063]
[1740234397635,66.62382076,173.59,173.58,0.063]
[1740234401855,67.62382076,173.59,173.58,0.063]
[1740234405426,136.62382076,173.59,173.58,0.063]
[1740234411046,135.62382076,173.59,173.58,0.063]
[1740234412662,129.1631644,173.59,173.58,0.063]
[1740234413041,124.9031644,173.59,173.58,0.063]
[1740234413240,113.41034886,173.59,173.58,0.063]
[1740234413446,111.90964886,173.59,173.58,0.063]
[1740234413947,107.64964886,173.59,173.58,0.063]
[1740234415869,124.9031644,173.59,173.58,0.063]
[1740234417157,55.9031644,173.59,173.58,0.063]
[1740234418956,50.1424644,173.55,173.54,0.063]
[1740234419146,92.69281554,173.56,173.54,0.063]
[1740234419965,81.2,173.56,173.54,0.063]
[1740234420763,98.45471554,173.56,173.54,0.063]
[1740234421645,18.64964886,173.55,173.54,0.063]
[1740234421850,30.1424644,173.55,173.54,0.063]
[1740234422668,35.9044644,173.55,173.54,0.063]
[1740234424967,24.41164886,173.55,173.54,0.063]
[1740234425281,35.9044644,173.55,173.54,0.063]
[1740234427285,24.41164886,173.55,173.54,0.063]
[1740234428074,81.2,173.56,173.54,0.063]
[1740234429058,86.9617,173.56,173.54,0.063]
[1740234429273,81.2,173.56,173.54,0.063]
[1740234429768,86.9617,173.56,173.54,0.063]
[1740234430983,18.64964886,173.55,173.54,0.063]
[1740234431570,81.2,173.56,173.54,0.063]
[1740234432185,20.0,173.55,173.54,0.063]
[1740234433583,38.64964886,173.55,173.54,0.063]
[1740234433785,44.41164886,173.55,173.54,0.063]
[1740234436977,55.9044644,173.55,173.54,0.063]
[1740234439092,56.9044644,173.55,173.54,0.063]
[1740234444696,65.91333233,173.55,173.54,0.063]
[1740234444869,66.91333233,173.55,173.54,0.063]
[1740234448703,31.49281554,173.51,173.46,0.063]
[1740234449509,30.1424644,173.5,173.46,0.063]
[1740234449706,11.49281554,173.49,173.46,0.063]
[1740234450085,20.0,173.47,173.46,0.063]
[1740234451515,25.7646,173.47,173.46,0.063]
[1740234455510,44.41424886,173.47,173.46,0.063]
[1740234456996,55.9070644,173.47,173.46,0.063]
[1740234461849,57.9070644,173.47,173.46,0.0001]
[1740234462842,20.0,173.43,173.42,0.063]
[1740234463011,54.4024644,173.43,173.42,0.063]
[1740234463216,60.1684644,173.43,173.42,0.063]
[1740234465727,61.1684644,173.43,173.42,0.063]
[1740234466241,60.1684644,173.43,173.42,0.063]
[1740234468241,4.26,173.44,173.42,0.063]
[1740234468419,24.26,173.44,173.42,0.063]
[1740234468618,20.0,173.43,173.42,0.063]
[1740234468841,4.26,173.44,173.42,0.063]
[1740234469821,20.0,173.43,173.42,0.063]
[1740234471123,80.49281554,173.48,173.43,6.2446]
[1740234471124,69.0,173.48,173.43,6.2446]
[1740234471329,4.26,173.49,173.44,11.49281554]
[1740234471728,81.2,173.48,173.44,11.49281554]
[1740234471935,81.2,173.48,173.46,11.49281554]
[1740234472144,81.2,173.48,173.47,11.49281554]
[1740234472446,81.2,173.52,173.47,11.49281554]
[1740234472743,81.2,173.52,173.48,11.49281554]
[1740234473846,81.2,173.52,173.49,11.49281554]
[1740234474023,20.0,173.51,173.49,11.49281554]
[1740234474222,20.0,173.51,173.49,17.25681554]
[1740234474423,20.0,173.51,173.49,11.49281554]
[1740234475120,81.23,173.54,173.49,11.49281554]
[1740234475341,81.23,173.54,173.52,11.49281554]
[1740234475532,0.03,173.54,173.52,11.49281554]
[1740234476150,20.03,173.54,173.51,11.49281554]
[1740234476845,0.03,173.54,173.52,11.49281554]
[1740234477451,0.03,173.54,173.51,11.49281554]
[1740234478047,0.03,173.54,173.5,11.49281554]
[1740234478525,0.03,173.54,173.5,17.25621554]
[1740234478725,0.03,173.54,173.51,11.49281554]
[1740234480454,0.03,173.54,173.5,17.25641554]
[1740234481656,0.03,173.54,173.53,17.25541554]
[1740234481952,0.03,173.54,173.53,23.50001554]
[1740234482133,0.03,173.54,173.53,25.12521554]
[1740234484562,0.03,173.54,173.53,106.62521554]
[1740234484750,0.03,173.54,173.53,114.29534384]
[1740234485838,0.03,173.54,173.53,117.23557]
[1740234488140,0.03,173.58,173.54,7.6701283]
[1740234488340,0.03,173.58,173.57,11.49281554]
[1740234489540,0.03,173.58,173.57,98.75411554]
[1740234500952,0.03,173.6,173.58,14.46400608]
[1740234501153,0.03,173.6,173.59,11.49281554]
[1740234501450,0.03,173.6,173.59,71.63138378]
[1740234502278,0.03,173.6,173.59,31.42082162]
[1740234505276,0.03,173.6,173.59,34.36246185]
[1740234506270,0.03,173.6,173.59,115.86246185]
[1740234508397,0.03,173.6,173.59,104.36964631]
[1740234508588,0.03,173.6,173.59,115.86246185]
[1740234511887,0.063,173.63,173.6,9.88346163]
[1740234512186,0.063,173.63,173.62,11.49281554]
[1740234512484,0.063,173.63,173.62,92.99281554]
[1740234512781,0.063,173.63,173.62,101.87627717]
[1740234512989,0.063,173.63,173.59,101.69515577]
[1740234513281,0.063,173.63,173.59,95.93445577]
[1740234514175,0.063,173.63,173.59,81.5]
[1740234514378,20.0,173.62,173.57,11.49281554]
[1740234516059,25.7598,173.62,173.58,11.49281554]
[1740234518787,5.7598,173.62,173.55,81.5]
[1740234518992,5.7598,173.62,173.56,11.49281554]
[1740234523890,17.25261554,173.62,173.55,101.59681776]
[1740234524788,17.25261554,173.62,173.56,0.063]
[1740234525087,11.55581554,173.63,173.56,0.063]
[1740234525784,0.063,173.63,173.57,11.49281554]
[1740234525987,0.063,173.63,173.59,11.49281554]
[1740234526485,0.063,173.63,173.58,11.49281554]
[1740234526664,0.063,173.63,173.57,11.49281554]
[1740234526864,0.063,173.63,173.58,11.49281554]
[1740234531478,0.063,173.63,173.59,11.49281554]
[1740234531686,0.063,173.63,173.58,11.49281554]
[1740234532492,0.063,173.63,173.59,11.49281554]
[1740234532667,0.063,173.63,173.6,11.49281554]
[1740234532871,0.063,173.63,173.59,11.49281554]
[1740234538800,0.063,173.63,173.58,17.31681554]
[1740234539411,0.063,173.63,173.58,11.55581554]
[1740234544191,0.063,173.63,173.59,11.49281554]
[1740234548901,0.063,173.63,173.62,11.49281554]
[1740234549116,0.063,173.63,173.62,92.99281554]
[1740234549316,0.063,173.63,173.62,101.50883809]
[1740234550020,0.063,173.63,173.62,108.13215651]
[1740234550199,0.063,173.64,173.62,108.13215651]
[1740234550400,0.063,173.64,173.63,11.49281554]
[1740234550798,0.063,173.64,173.63,20.00883809]
[1740234551322,0.063,173.64,173.63,25.76813809]
[1740234553842,0.063,173.64,173.63,107.26813809]
[1740234555425,1.5556,173.71,173.63,107.26813809]
[1740234555426,1e-08,173.8,173.79,1.0]
[1740234555609,1e-08,173.8,173.79,90.24577236]
[1740234555814,18.02773587,173.81,173.8,9.9106302]
[1740234556006,6.49504068,173.81,173.8,25.50787461]
[1740234556208,6.49504068,173.81,173.8,31.26157461]
[1740234556505,6.49504068,173.81,173.8,42.75439015]
[1740234558210,15.79281554,173.92,173.8,42.75439015]
[1740234558409,15.79281554,173.92,173.84,11.49281554]
[1740234558809,11.49281554,173.92,173.84,11.49281554]
[1740234559010,15.79281554,173.92,173.84,11.49281554]
[1740234559211,11.49281554,173.92,173.84,11.49281554]
[1740234559512,4.3,173.93,173.89,11.49281554]
[1740234560310,4.3,173.93,173.85,9.9106302]
[1740234560311,1.6647,173.94,173.9,11.49281554]
[1740234560715,1.6647,173.94,173.9,17.88010253]
[1740234561221,1.6647,173.94,173.92,17.88010253]
[1740234561412,1.6647,173.94,173.91,17.88010253]
[1740234561620,1.6647,173.94,173.88,17.88010253]
[1740234564620,1.6647,173.94,173.9,17.88010253]
[1740234566001,1.6647,173.94,173.86,96.8353802]
[1740234566002,1.6647,173.94,173.89,17.88010253]
[1740234566714,7.4138,173.94,173.88,17.88010253]
[1740234567826,7.4138,173.94,173.89,17.88010253]
[1740234571828,7.4138,173.94,173.89,17.88010253]
[1740234572623,17.88010253,173.93,173.86,99.38010253]
[1740234574020,36.52975139,173.92,173.86,81.5]
[1740234574409,5.7501,173.91,173.86,81.5]
[1740234574608,86.9501,173.91,173.85,17.88010253]
[1740234580630,86.9501,173.91,173.85,11.44932922]
[1740234581833,86.9501,173.91,173.86,11.44932922]
[1740234583039,81.2,173.91,173.87,11.44932922]
[1740234583914,81.2,173.93,173.89,11.44932922]
[1740234584137,86.9495,173.93,173.89,11.44932922]
[1740234584541,86.9495,173.93,173.88,11.44932922]
[1740234587138,86.9495,173.93,173.87,11.44932922]
[1740234588239,81.2,173.93,173.87,11.44932922]
[1740234588443,81.2,173.93,173.87,17.20062922]
[1740234588643,81.2,173.93,173.88,11.44932922]
[1740234590424,81.2,173.93,173.88,17.20032922]
[1740234591943,81.2,173.93,173.88,11.44932922]
[1740234592141,86.9495,173.93,173.87,17.20062922]
[1740234596950,81.2,173.93,173.87,17.20062922]
[1740234597247,81.23,173.93,173.87,17.20062922]
[1740234597753,86.9794,173.93,173.87,17.20062922]
[1740234598753,86.9794,173.93,173.88,11.44932922]
[1740234599154,81.23,173.93,173.88,11.44932922]
[1740234600358,81.23,173.93,173.88,17.20032922]
[1740234602354,81.23,173.93,173.88,11.44932922]
[1740234602741,86.9795,173.93,173.88,11.44932922]
[1740234603457,81.23,173.93,173.88,11.44932922]
[1740234604134,81.23,173.93,173.87,11.44932922]
[1740234604851,81.23,173.93,173.85,5.752]
[1740234604852,81.23,173.93,173.88,11.44932922]
[1740234605026,81.23,173.93,173.85,20.1322]
[1740234605027,0.03,173.93,173.89,11.44932922]
[1740234608057,0.03,173.93,173.89,17.19992922]
[1740234608726,0.03,173.93,173.89,5.7506]
[1740234612758,0.03,173.93,173.88,11.44932922]
[1740234613073,0.03,173.93,173.88,17.20032922]
[1740234618060,0.03,173.93,173.88,5.751]
[1740234618654,0.03,173.93,173.88,17.20032922]
[1740234620569,11.44932922,173.91,173.86,18.14325558]
[1740234621268,30.12897808,173.93,173.86,18.14325558]
[1740234621448,30.12897808,173.93,173.85,17.20122922]
[1740234621648,81.2,173.92,173.85,17.20122922]
[1740234621854,81.2,173.92,173.86,11.44932922]
[1740234622054,81.2,173.92,173.89,11.44932922]
[1740234622271,0.03,173.93,173.89,11.44932922]
[1740234622686,0.03,173.93,173.91,11.44932922]
[1740234623687,0.03,173.93,173.92,11.44932922]
[1740234626164,0.03,173.93,173.92,17.19902922]
[1740234626866,0.03,173.93,173.92,11.44932922]
[1740234627891,0.03,173.93,173.91,11.44932922]
[1740234628393,0.03,173.93,173.9,11.44932922]
[1740234628776,0.03,173.93,173.91,11.44932922]
[1740234628987,0.03,173.93,173.92,11.44932922]
[1740234631087,0.03,173.93,173.91,11.44932922]
[1740234631287,0.03,173.93,173.9,11.44932922]
[1740234632971,0.03,173.93,173.88,116.8435848]
[1740234633880,0.03,173.93,173.89,11.44932922]
[1740234634897,1.6127,173.92,173.88,81.5]
[1740234635097,13.06202922,173.92,173.88,81.5]
[1740234635973,13.06202922,173.92,173.86,18.14325558]
[1740234636173,17.19942922,173.91,173.86,18.14325558]
[1740234636799,17.19942922,173.91,173.84,11.44932922]
[1740234637396,5.7501,173.91,173.84,11.44932922]
[1740234637809,17.19942922,173.91,173.84,11.44932922]
[1740234640210,94.26202922,173.92,173.85,11.44932922]
[1740234641315,94.26202922,173.92,173.86,5.7517]
[1740234642115,82.8127,173.92,173.86,17.20102922]
[1740234644982,100.01172922,173.92,173.85,11.44932922]
[1740234647786,11.44932922,173.9,173.83,119.7286928]
[1740234648112,88.5624,173.92,173.83,119.7286928]
[1740234648113,11.44932922,173.89,173.83,99.64325558]
[1740234648309,11.44932922,173.89,173.83,81.5]
[1740234648504,11.44932922,173.89,173.83,87.2526]
[1740234648897,11.44932922,173.89,173.83,5.7526]
[1740234649309,11.44932922,173.9,173.83,5.7526]
[1740234649606,17.20002922,173.9,173.83,11.44932922]
[1740234649904,17.20002922,173.9,173.82,5.753]
[1740234650110,17.20002922,173.9,173.83,11.44932922]
[1740234651411,17.20002922,173.9,173.83,17.20202922]
[1740234655533,5.7507,173.9,173.84,11.44932922]
[1740234657513,5.7507,173.9,173.84,17.20162922]
[1740234657718,92.64932922,173.91,173.84,17.20162922]
[1740234657911,98.39942922,173.91,173.84,17.20162922]
[1740234658411,81.2,173.91,173.87,11.44932922]
[1740234660539,81.2,173.91,173.86,17.20072922]
[1740234660913,81.2,173.91,173.86,5.7514]
[1740234661246,81.2,173.91,173.85,17.20132922]
[1740234663745,18.84182922,173.92,173.85,17.20132922]
[1740234663920,11.44932922,173.9,173.84,5.7523]
[1740234664121,11.44932922,173.9,173.83,81.5]
[1740234664322,11.44932922,173.89,173.83,81.5]
[1740234665123,11.44932922,173.88,173.83,81.5]
[1740234666120,11.44932922,173.89,173.83,81.5]
[1740234667855,17.19972922,173.9,173.83,98.70182922]
[1740234669660,17.19972922,173.9,173.83,17.20182922]
[1740234670037,17.19972922,173.9,173.83,5.7525]
[1740234670038,11.44932922,173.9,173.83,5.7525]
[1740234670244,92.67932922,173.91,173.84,11.44932922]
[1740234670444,98.42942922,173.91,173.84,11.44932922]
[1740234671262,92.67932922,173.91,173.84,11.44932922]
[1740234671462,98.42942922,173.91,173.84,11.44932922]
[1740234671766,11.44932922,173.9,173.82,11.44932922]
[1740234672050,17.20082922,173.87,173.81,5.8163]
[1740234672767,11.44932922,173.86,173.81,0.063]
[1740234672926,11.44932922,173.85,173.81,0.063]
[1740234674352,81.2,173.88,173.83,11.44932922]
[1740234674548,81.2,173.88,173.84,11.44932922]
[1740234674756,1.6896,173.91,173.85,11.44932922]
[1740234675529,13.13892922,173.91,173.84,11.44932922]
[1740234676333,13.13892922,173.91,173.85,5.752]
[1740234677250,1.6896,173.91,173.85,17.20132922]
[1740234678558,13.13892922,173.91,173.85,5.752]
[1740234678758,11.44932922,173.89,173.82,11.44932922]
[1740234679143,11.44932922,173.89,173.82,17.20232922]
[1740234679859,7.4397,173.91,173.81,81.563]
[1740234679860,11.44932922,173.87,173.81,0.063]
[1740234681472,11.44932922,173.86,173.81,0.063]
[1740234682962,11.44932922,173.85,173.81,0.063]
[1740234684063,17.20152922,173.85,173.81,0.063]
[1740234686174,17.20142922,173.85,173.81,0.063]
[1740234687675,11.44932922,173.82,173.81,0.063]
[1740234689558,81.2,173.83,173.81,0.063]
[1740234691279,11.44932922,173.88,173.81,11.51232922]
[1740234691579,81.2,173.9,173.85,11.44932922]
[1740234692078,81.2,173.9,173.86,11.44932922]
[1740234692277,81.2,173.9,173.87,11.44932922]
[1740234692582,81.2,173.9,173.85,11.44932922]
[1740234693565,81.2,173.9,173.85,17.20132922]
[1740234694286,81.2,173.9,173.84,11.44932922]
[1740234695590,81.2,173.9,173.84,17.20142922]
[1740234695977,11.44932922,173.9,173.82,10.89603754]
[1740234696168,11.44932922,173.89,173.82,6.3538]
[1740234696369,11.44932922,173.87,173.81,0.063]
[1740234698985,11.44932922,173.85,173.81,0.063]
[1740234699370,11.44932922,173.86,173.81,0.063]
[1740234701680,17.20122922,173.86,173.81,0.063]
[1740234702091,11.44932922,173.86,173.81,0.063]
[1740234702282,15.68932922,173.88,173.81,11.51232922]
[1740234702479,4.24,173.88,173.82,11.44932922]
[1740234703595,4.24,173.88,173.83,5.7527]
[1740234704397,92.64932922,173.89,173.83,5.7527]
[1740234705209,0.03,173.91,173.86,11.44932922]
[1740234706501,0.03,173.91,173.87,5.7514]
[1740234709210,0.03,173.91,173.88,11.44932922]
[1740234709370,0.03,173.91,173.89,11.44932922]
[1740234711070,0.03,173.91,173.9,17.19972922]
[1740234711771,0.03,173.91,173.9,98.69972922]
[1740234711972,0.03,173.92,173.91,6.4782]
[1740234712177,0.03,173.93,173.92,1.5824]
[1740234712404,0.03,173.94,173.92,22.04626297]
[1740234712603,0.03,173.94,173.93,11.44932922]
[1740234712918,11.44932922,174.04,173.96,20.0]
[1740234713214,4.24,174.05,173.98,17.19702922]
[1740234714603,4.24,174.05,173.98,17.8583677]
[1740234715387,4.24,174.05,173.98,99.3583677]
[1740234716003,22.0983677,174.05,173.98,99.3583677]
[1740234716689,23.6041677,174.04,173.98,81.5]
[1740234717075,17.8583677,174.03,173.98,81.5]
[1740234717280,23.6041677,174.04,173.98,81.5]
[1740234718480,5.7458,174.04,173.98,99.3583677]
[1740234720187,5.7458,174.04,173.98,17.8583677]
[1740234723329,17.8883677,173.99,173.94,81.5]
[1740234723616,17.8583677,173.95,173.89,182.44]
[1740234723785,81.23,173.99,173.89,182.44]
[1740234723786,17.8583677,173.94,173.89,81.5]
[1740234724517,17.8583677,173.94,173.87,81.5]
[1740234724693,17.8583677,173.94,173.87,99.3583677]
[1740234725194,23.6076677,173.94,173.87,99.3583677]
[1740234727295,17.8583677,173.92,173.85,17.8583677]
[1740234727502,17.8583677,173.89,173.82,17.8583677]
[1740234727715,17.8583677,173.89,173.82,99.3583677]
[1740234728216,17.8583677,173.89,173.82,105.1112677]
[1740234728416,23.6092677,173.89,173.82,105.1112677]
[1740234728602,23.6092677,173.89,173.82,99.3583677]
[1740234729915,4.24,173.92,173.82,105.1112677]
[1740234729916,17.8583677,173.9,173.82,105.1112677]
[1740234730099,23.6084677,173.91,173.84,17.8583677]
[1740234730520,23.6084677,173.91,173.87,0.063]
[1740234730720,104.8084677,173.91,173.87,0.063]
[1740234732315,17.8583677,173.9,173.87,0.063]
[1740234733201,17.8583677,173.89,173.87,0.063]
[1740234733401,17.8583677,173.88,173.87,0.063]
[1740234734333,23.6093677,173.88,173.87,0.063]